{"text_format":"2","workbook":"xlsx","n_sheets":1,"sheets":["Final en miles"],"not_rendered":{"charts":0,"images":0,"macros":0,"external_links":0,"defined_names":0,"comments":0,"pivot_tables":0},"unopened":[],"bounds":{"document_bytes":16777216,"sheet_cells":100000,"run_cost":"one","rows_first":2000,"rows_last":500,"rows_between":2000,"halvings":0,"cell_chars":16384,"cell_head_chars":4096},"cells_cut":0,"cells_raw":0,"read":"whole","date_system":"1900"}

{"sheet":"Final en miles","index":0,"n_rows":66,"n_cols":6,"rows_kept":66,"cut":false,"hidden":false,"merged":[[2,0,2,5],[6,0,6,1],[7,0,7,1],[8,0,8,1]]}
["TVS WIRELESS S.A.C."]
[]
["INFORME 6: INGRESOS OPERATIVOS MAYORISTAS POR EMPRESA"]
[]
["Periodo de reporte: Enero a Diciembre 2017"]
[]
["Expresado en Miles de Soles",null,"Ingresos calculados (en base a precios de lista)","Ajustes\n(descuentos y\npromociones)","Estado de Resultados de Contabilidad Separada (valor facturado)","Nota"]
["INGRESOS OPERATIVOS MAYORISTAS",null,{"$f":"+C9+C13+C64+C65","v":94479.67553},0,94479.67553]
["De empresas operadoras vinculadas",null,{"$f":"+C10","v":94479.67553},0,94479.67553]
["GRUPO OLO (OLO + CABLEVISION + TVS + VELATEL+CLARO)",null,{"$f":"+C11+C12","v":94479.67553},0,94479.67553]
[null," Terminación de Llamadas en la Red del Servicio de Telefonía Fija Local  ",0.0,0.0,0.0]
[null," Otros  ",94479.67553000001,0.0,94479.67553000001]
["De empresas operadoras no vinculadas",null,{"$f":"+C14+C24+C34+C44+C54","v":0},0,0]
["TELEFÓNICA DEL PERÚ S.A.A.",null,{"$f":"+SUM(C15:C23)","v":0},0,0]
[null," Transporte Conmutado Local  ",0.0,0.0,0.0]
[null," Transporte Conmutado de Larga Distancia Nacional  ",0.0,0.0,0.0]
[null," Acceso a los Teléfonos de Uso Público  ",0.0,0.0,0.0]
[null," Terminación de Llamadas en la Red de Servicio Móvil  ",0.0,0.0,0.0]
[null," Terminación de Llamadas en la Red del Servicio de Telefonía Fija Local  ",0.0,0.0,0.0]
[null," Facturación y Recaudación  ",0.0,0.0,0.0]
[null," Adecuación de Red  ",0.0,0.0,0.0]
[null," Acceso a la Plataforma de Pago  ",0.0,0.0,0.0]
[null," Enlaces de Interconexión  ",0.0,0.0,0.0]
["ENTEL PERÚ",null,{"$f":"+SUM(C25:C33)","v":0},0,0]
[null," Transporte Conmutado Local  ",0.0,0.0,0.0]
[null," Transporte Conmutado de Larga Distancia Nacional  ",0.0,0.0,0.0]
[null," Acceso a los Teléfonos de Uso Público  ",0.0,0.0,0.0]
[null," Terminación de Llamadas en la Red de Servicio Móvil  ",0.0,0.0,0.0]
[null," Terminación de Llamadas en la Red del Servicio de Telefonía Fija Local  ",0.0,0.0,0.0]
[null," Facturación y Recaudación  ",0.0,0.0,0.0]
[null," Adecuación de Red  ",0.0,0.0,0.0]
[null," Acceso a la Plataforma de Pago  ",0.0,0.0,0.0]
[null," Enlaces de Interconexión  ",0.0,0.0,0.0]
["VIETTEL PERÚ S.A.C.",null,{"$f":"+SUM(C35:C43)","v":0},0,0]
[null," Transporte Conmutado Local  ",0.0,0.0,0.0]
[null," Transporte Conmutado de Larga Distancia Nacional  ",0.0,0.0,0.0]
[null," Acceso a los Teléfonos de Uso Público  ",0.0,0.0,0.0]
[null," Terminación de Llamadas en la Red de Servicio Móvil  ",0.0,0.0,0.0]
[null," Terminación de Llamadas en la Red del Servicio de Telefonía Fija Local  ",0.0,0.0,0.0]
[null," Facturación y Recaudación  ",0.0,0.0,0.0]
[null," Adecuación de Red  ",0.0,0.0,0.0]
[null," Acceso a la Plataforma de Pago  ",0.0,0.0,0.0]
[null," Enlaces de Interconexión  ",0.0,0.0,0.0]
["VIRGIN MOBILE PERÚ S.A.",null,{"$f":"+SUM(C45:C53)","v":0},0,0]
[null," Transporte Conmutado Local  ",0.0,0.0,0.0]
[null," Transporte Conmutado de Larga Distancia Nacional  ",0.0,0.0,0.0]
[null," Acceso a los Teléfonos de Uso Público  ",0.0,0.0,0.0]
[null," Terminación de Llamadas en la Red de Servicio Móvil  ",0.0,0.0,0.0]
[null," Terminación de Llamadas en la Red del Servicio de Telefonía Fija Local  ",0.0,0.0,0.0]
[null," Facturación y Recaudación  ",0.0,0.0,0.0]
[null," Adecuación de Red  ",0.0,0.0,0.0]
[null," Acceso a la Plataforma de Pago  ",0.0,0.0,0.0]
[null," Enlaces de Interconexión  ",0.0,0.0,0.0]
["OTROS OPERADORES",null,{"$f":"+SUM(C55:C63)","v":0},0,0]
[null," Transporte Conmutado Local  ",0.0,0.0,0.0]
[null," Transporte Conmutado de Larga Distancia Nacional  ",0.0,0.0,0.0]
[null," Acceso a los Teléfonos de Uso Público  ",0.0,0.0,0.0]
[null," Terminación de Llamadas en la Red de Servicio Móvil  ",0.0,0.0,0.0]
[null," Terminación de Llamadas en la Red del Servicio de Telefonía Fija Local  ",0.0,0.0,0.0]
[null," Facturación y Recaudación  ",0.0,0.0,0.0]
[null," Adecuación de Red  ",0.0,0.0,0.0]
[null," Acceso a la Plataforma de Pago  ",0.0,0.0,0.0]
[null," Enlaces de Interconexión  ",0.0,0.0,0.0]
["De redes internacionales",null,0.0,0.0,0.0]
["Otros",null,0.0,0.0,0.0]
["Ingreso Imputado",null,"No aplica","No aplica","No aplica"]